[Event "Early-Titled-Tuesday-Blitz-April-23-2024"]
[Site "Chess.com"]
[Date "2024.04.23"]
[Round "7"]
[White "GrotBchess"]
[Black "Navyblue1"]
[Result "0-1"]
[WhiteElo "2438"]
[BlackElo "2252"]
[TimeControl "180+1"]
[EndTime "9:21:24 PDT"]
[Termination "Navyblue1 won by resignation"]

1. e4 {[%clk 0:03:00.9]} 1... c5 {[%clk 0:01:54.3]} 2. Nf3 {[%clk 0:02:58.2]}
2... d6 {[%clk 0:01:51.1]} 3. Bb5+ {[%clk 0:02:57.8]} 3... Nd7 {[%clk
0:01:50.5]} 4. c3 {[%clk 0:02:57.1]} 4... Nf6 {[%clk 0:01:47.8]} 5. Qe2 {[%clk
0:02:55.8]} 5... e5 {[%clk 0:01:42]} 6. O-O {[%clk 0:02:53.5]} 6... a6 {[%clk
0:01:41.4]} 7. Ba4 {[%clk 0:02:52.2]} 7... b5 {[%clk 0:01:38.5]} 8. Bc2 {[%clk
0:02:51.3]} 8... Bb7 {[%clk 0:01:37.5]} 9. d4 {[%clk 0:02:51.1]} 9... Be7 {[%clk
0:01:30.3]} 10. a4 {[%clk 0:02:49.6]} 10... b4 {[%clk 0:01:24]} 11. d5 {[%clk
0:02:47.4]} 11... O-O {[%clk 0:01:17.1]} 12. c4 {[%clk 0:02:46]} 12... a5 {[%clk
0:01:15.7]} 13. b3 {[%clk 0:02:46]} 13... Ne8 {[%clk 0:01:13.9]} 14. Nbd2 {[%clk
0:02:42.8]} 14... g6 {[%clk 0:01:07.8]} 15. Re1 {[%clk 0:02:42.4]} 15... Ng7
{[%clk 0:01:06.2]} 16. Nf1 {[%clk 0:02:41.6]} 16... Bc8 {[%clk 0:01:05.7]} 17.
Bh6 {[%clk 0:02:40.4]} 17... Nf6 {[%clk 0:01:03.1]} 18. h3 {[%clk 0:02:36.1]}
18... Nfe8 {[%clk 0:01:02]} 19. Ng3 {[%clk 0:02:34.6]} 19... f5 {[%clk
0:00:59.9]} 20. exf5 {[%clk 0:02:20.3]} 20... gxf5 {[%clk 0:01:00.8]} 21. Nh2
{[%clk 0:02:20.3]} 21... Bg5 {[%clk 0:00:57.1]} 22. Bxg5 {[%clk 0:02:07.7]}
22... Qxg5 {[%clk 0:00:58]} 23. Rad1 {[%clk 0:02:03.2]} 23... Ra7 {[%clk
0:00:56]} 24. Nf3 {[%clk 0:01:49.8]} 24... Qh6 {[%clk 0:00:54.3]} 25. Qd2 {[%clk
0:01:48.9]} 25... f4 {[%clk 0:00:45.8]} 26. Ne4 {[%clk 0:01:48.1]} 26... Raf7
{[%clk 0:00:39.3]} 27. Kf1 {[%clk 0:01:47.6]} 27... Bf5 {[%clk 0:00:24.8]} 28.
Ke2 {[%clk 0:01:43.8]} 28... Bxe4 {[%clk 0:00:21.1]} 29. Bxe4 {[%clk 0:01:44.7]}
29... Nf6 {[%clk 0:00:21.1]} 30. Qd3 {[%clk 0:01:44.7]} 30... Nxe4 {[%clk
0:00:20.6]} 31. Qxe4 {[%clk 0:01:45.6]} 31... Qg6 {[%clk 0:00:20.5]} 32. Kd3
{[%clk 0:01:40.6]} 32... Qxe4+ {[%clk 0:00:19.8]} 33. Kxe4 {[%clk 0:01:33.4]}
33... Rf6 {[%clk 0:00:20.4]} 34. Nd2 {[%clk 0:01:32.4]} 34... Kh8 {[%clk
0:00:20]} 35. Kd3 {[%clk 0:01:32]} 35... Rg6 {[%clk 0:00:20.4]} 36. Rg1 {[%clk
0:01:30.9]} 36... f3 {[%clk 0:00:19.5]} 37. Nxf3 {[%clk 0:01:27.3]} 37... Nf5
{[%clk 0:00:18.6]} 38. Nd2 {[%clk 0:01:24.5]} 38... Nd4 {[%clk 0:00:18.3]} 39.
f3 {[%clk 0:01:15.5]} 39... Rg3 {[%clk 0:00:18.4]} 40. Rde1 {[%clk 0:01:13.7]}
40... Rf4 {[%clk 0:00:17.7]} 41. Re4 {[%clk 0:01:11.9]} 41... Rxe4 {[%clk
0:00:17]} 42. Nxe4 {[%clk 0:01:11]} 42... Rg6 {[%clk 0:00:16.1]} 43. Nd2 {[%clk
0:01:10.3]} 43... h5 {[%clk 0:00:14.8]} 44. g4 {[%clk 0:01:10.1]} 44... hxg4
{[%clk 0:00:14.8]} 45. Rxg4 {[%clk 0:01:10]} 45... Rf6 {[%clk 0:00:14]} 46. Ke3
{[%clk 0:01:08.4]} 46... Rh6 {[%clk 0:00:12]} 47. h4 {[%clk 0:01:07.4]} 47...
Kh7 {[%clk 0:00:11.5]} 48. f4 {[%clk 0:01:06.9]} 48... exf4+ {[%clk 0:00:10.5]}
49. Rxf4 {[%clk 0:01:07]} 49... Rg6 {[%clk 0:00:10.7]} 50. Rf7+ {[%clk
0:01:03.3]} 50... Kh6 {[%clk 0:00:10.4]} 51. Rd7 {[%clk 0:01:02.8]} 51... Rg3+
{[%clk 0:00:10.1]} 52. Kf4 {[%clk 0:01:02.7]} 52... Rd3 {[%clk 0:00:09.9]} 53.
Rxd6+ {[%clk 0:01:01.7]} 53... Kg7 {[%clk 0:00:09.6]} 54. Ne4 {[%clk 0:01:01.9]}
54... Nxb3 {[%clk 0:00:09]} 55. Rd7+ {[%clk 0:01:01.4]} 55... Kf8 {[%clk
0:00:09.2]} 56. Ke5 {[%clk 0:00:58.2]} 56... Re3 {[%clk 0:00:08.5]} 57. Rd8+
{[%clk 0:00:48.5]} 57... Ke7 {[%clk 0:00:08.3]} 58. Rg8 {[%clk 0:00:48.3]} 58...
Nd2 {[%clk 0:00:07.7]} 59. d6+ {[%clk 0:00:47.8]} 59... Kd7 {[%clk 0:00:07.6]}
60. Rg7+ {[%clk 0:00:47.8]} 60... Kc6 {[%clk 0:00:07.6]} 61. Rg4 {[%clk
0:00:34.2]} 61... Rxe4+ {[%clk 0:00:07.9]} 62. Rxe4 {[%clk 0:00:34.1]} 62...
Nxe4 {[%clk 0:00:08.4]} 63. Kxe4 {[%clk 0:00:34.4]} 63... Kxd6 {[%clk
0:00:09.1]} 64. Kd3 {[%clk 0:00:14.5]} 64... Ke6 {[%clk 0:00:09.5]} 65. Ke4
{[%clk 0:00:14.6]} 65... Kf6 {[%clk 0:00:09.5]} 66. Kd5 {[%clk 0:00:10.5]} 66...
b3 {[%clk 0:00:08.6]} 67. Kxc5 {[%clk 0:00:11.4]} 67... b2 {[%clk 0:00:08.6]}
68. Kd6 {[%clk 0:00:12]} 68... b1=Q {[%clk 0:00:09]} 69. c5 {[%clk 0:00:12.6]}
69... Qd1+ {[%clk 0:00:09.5]} 70. Kc7 {[%clk 0:00:12.2]} 70... Qxa4 {[%clk
0:00:10]} 71. c6 {[%clk 0:00:12.3]} 71... Qc4 {[%clk 0:00:10.6]} 72. Kb7 {[%clk
0:00:12.6]} 72... a4 {[%clk 0:00:11.1]} 73. c7 {[%clk 0:00:13.1]} 73... a3
{[%clk 0:00:11.7]} 74. c8=Q {[%clk 0:00:13.1]} 74... Qxc8+ {[%clk 0:00:12.3]}
75. Kxc8 {[%clk 0:00:13.9]} 75... a2 {[%clk 0:00:12.9]} 76. h5 {[%clk
0:00:14.5]} 76... a1=Q {[%clk 0:00:13.3]} 77. h6 {[%clk 0:00:15.4]} 77... Qh1
{[%clk 0:00:13]} 78. h7 {[%clk 0:00:16.3]} 78... Qxh7 {[%clk 0:00:13.1]} 79. Kb8
{[%clk 0:00:16.5]} 79... Qf5 {[%clk 0:00:13.4]} 80. Ka8 {[%clk 0:00:17.4]} 80...
Qd5+ {[%clk 0:00:13.6]} 81. Kb8 {[%clk 0:00:17.2]} 81... Qf7 {[%clk 0:00:14.2]}
82. Ka8 {[%clk 0:00:18.1]} 82... Ke6 {[%clk 0:00:14.6]} 83. Kb8 {[%clk
0:00:18.9]} 83... Kd6 {[%clk 0:00:15.4]} 84. Ka8 {[%clk 0:00:19.8]} 84... Kc6
{[%clk 0:00:16.2]} 0-1

[Event "Early-Titled-Tuesday-Blitz-April-23-2024"]
[Site "Chess.com"]
[Date "2024.04.23"]
[Round "7"]
[White "AlainBruxelles"]
[Black "WilsonPalencia21"]
[Result "1-0"]
[WhiteElo "2367"]
[BlackElo "2539"]
[TimeControl "180+1"]
[EndTime "9:21:34 PDT"]
[Termination "AlainBruxelles won on time"]

1. e4 {[%clk 0:02:55.4]} 1... c5 {[%clk 0:02:52.4]} 2. Nf3 {[%clk 0:02:52.1]}
2... d6 {[%clk 0:02:51.4]} 3. Nc3 {[%clk 0:02:50.6]} 3... Nf6 {[%clk 0:02:42.3]}
4. e5 {[%clk 0:02:50.2]} 4... dxe5 {[%clk 0:02:43.2]} 5. Nxe5 {[%clk 0:02:50.5]}
5... a6 {[%clk 0:02:43.6]} 6. Bc4 {[%clk 0:02:45.3]} 6... e6 {[%clk 0:02:43.7]}
7. a4 {[%clk 0:02:44.7]} 7... Qc7 {[%clk 0:02:39.4]} 8. Qe2 {[%clk 0:02:39]}
8... Bd6 {[%clk 0:02:38.7]} 9. f4 {[%clk 0:02:36]} 9... O-O {[%clk 0:02:30.5]}
10. O-O {[%clk 0:02:33]} 10... b6 {[%clk 0:02:30.4]} 11. d3 {[%clk 0:02:29.1]}
11... Bb7 {[%clk 0:02:30.2]} 12. Nxf7 {[%clk 0:02:13.5]} 12... Rxf7 {[%clk
0:02:30.1]} 13. Bxe6 {[%clk 0:02:12.6]} 13... Nc6 {[%clk 0:02:25.4]} 14. Qf2
{[%clk 0:02:03.4]} 14... Re8 {[%clk 0:02:21.1]} 15. Bxf7+ {[%clk 0:02:00.8]}
15... Qxf7 {[%clk 0:02:20.7]} 16. Bd2 {[%clk 0:01:58.8]} 16... Nd4 {[%clk
0:02:20.4]} 17. Rac1 {[%clk 0:01:52.4]} 17... h5 {[%clk 0:02:13.1]} 18. Qh4
{[%clk 0:01:43.3]} 18... Qg6 {[%clk 0:02:09.9]} 19. Qg5 {[%clk 0:01:39.2]} 19...
Qf7 {[%clk 0:01:56.8]} 20. h3 {[%clk 0:01:32.3]} 20... Ne2+ {[%clk 0:01:43.7]}
21. Nxe2 {[%clk 0:01:30.3]} 21... Rxe2 {[%clk 0:01:44.6]} 22. Rf2 {[%clk
0:01:30]} 22... Rxf2 {[%clk 0:01:27.1]} 23. Kxf2 {[%clk 0:01:29]} 23... Nh7
{[%clk 0:01:17.5]} 24. Qg3 {[%clk 0:01:26.1]} 24... g5 {[%clk 0:01:16.2]} 25.
Re1 {[%clk 0:01:22]} 25... Bc6 {[%clk 0:01:06]} 26. b3 {[%clk 0:01:18.2]} 26...
Kh8 {[%clk 0:01:04.2]} 27. Bc3+ {[%clk 0:01:17.1]} 27... Kg8 {[%clk 0:01:04.7]}
28. Bd2 {[%clk 0:01:12.3]} 28... Qf5 {[%clk 0:00:51.6]} 29. Kg1 {[%clk
0:01:09.5]} 29... h4 {[%clk 0:00:49.3]} 30. Qf2 {[%clk 0:01:06.8]} 30... Nf8
{[%clk 0:00:24]} 31. fxg5 {[%clk 0:01:05.6]} 31... Qxf2+ {[%clk 0:00:22.9]} 32.
Kxf2 {[%clk 0:01:05.9]} 32... Bg3+ {[%clk 0:00:23.5]} 33. Ke2 {[%clk 0:01:05.8]}
33... Bxe1 {[%clk 0:00:24.4]} 34. Bxe1 {[%clk 0:01:04.1]} 34... Bxg2 {[%clk
0:00:24.4]} 35. Bxh4 {[%clk 0:01:04.2]} 35... Bxh3 {[%clk 0:00:23.4]} 36. Bf2
{[%clk 0:01:01.4]} 36... a5 {[%clk 0:00:22.6]} 37. Bg3 {[%clk 0:01:00.8]} 37...
Kf7 {[%clk 0:00:20.8]} 38. Bc7 {[%clk 0:00:59.6]} 38... Nd7 {[%clk 0:00:21]} 39.
Ke3 {[%clk 0:00:59.5]} 39... Ke6 {[%clk 0:00:20.8]} 40. Kf4 {[%clk 0:00:59]}
40... Bf5 {[%clk 0:00:19]} 41. Ke3 {[%clk 0:00:54.6]} 41... Kd5 {[%clk
0:00:18.3]} 42. c4+ {[%clk 0:00:52.3]} 42... Kc6 {[%clk 0:00:18.1]} 43. Bd8
{[%clk 0:00:51.9]} 43... Bg6 {[%clk 0:00:17.5]} 44. d4 {[%clk 0:00:51.5]} 44...
cxd4+ {[%clk 0:00:16.4]} 45. Kxd4 {[%clk 0:00:52.1]} 45... Nc5 {[%clk
0:00:16.2]} 46. Kc3 {[%clk 0:00:49.8]} 46... Ne4+ {[%clk 0:00:15.4]} 47. Kd4
{[%clk 0:00:49.8]} 47... Nd6 {[%clk 0:00:13.5]} 48. Kc3 {[%clk 0:00:37.6]} 48...
Nb7 {[%clk 0:00:13.5]} 49. Bf6 {[%clk 0:00:36.9]} 49... Nc5 {[%clk 0:00:13.4]}
50. Be7 {[%clk 0:00:31]} 50... Ne4+ {[%clk 0:00:11.7]} 51. Kd4 {[%clk
0:00:30.4]} 51... Nc5 {[%clk 0:00:08.8]} 52. Kc3 {[%clk 0:00:22.9]} 52... Bh5
{[%clk 0:00:08.9]} 53. Bf6 {[%clk 0:00:20]} 53... Ne4+ {[%clk 0:00:07.8]} 54.
Kd4 {[%clk 0:00:19.3]} 54... Nd2 {[%clk 0:00:07.1]} 55. Kc3 {[%clk 0:00:18]}
55... Ne4+ {[%clk 0:00:05.9]} 56. Kd4 {[%clk 0:00:18.4]} 56... Nc5 {[%clk
0:00:06.8]} 57. Kc3 {[%clk 0:00:17.9]} 57... Kd6 {[%clk 0:00:06.5]} 58. Bg7
{[%clk 0:00:17.1]} 58... Bg6 {[%clk 0:00:05.4]} 59. Bf8+ {[%clk 0:00:16.7]}
59... Kc6 {[%clk 0:00:05.8]} 60. Bg7 {[%clk 0:00:16.8]} 60... Kd7 {[%clk
0:00:05.5]} 61. Bf6 {[%clk 0:00:16.5]} 61... Kd6 {[%clk 0:00:05.1]} 62. Bd8
{[%clk 0:00:12.1]} 62... Kc6 {[%clk 0:00:04.4]} 63. Bf6 {[%clk 0:00:11.8]} 63...
Nb7 {[%clk 0:00:04.8]} 64. Bd4 {[%clk 0:00:11.4]} 64... Nd6 {[%clk 0:00:05]} 65.
Bf6 {[%clk 0:00:07.3]} 65... Bf5 {[%clk 0:00:02.8]} 66. Kd4 {[%clk 0:00:05.2]}
66... Bc2 {[%clk 0:00:02.8]} 67. Kc3 {[%clk 0:00:05.3]} 67... Bh7 {[%clk
0:00:02.4]} 68. Kd4 {[%clk 0:00:04.9]} 68... Ne4 {[%clk 0:00:02.2]} 69. Be5
{[%clk 0:00:03.3]} 69... Nxg5 {[%clk 0:00:01.7]} 70. Bh2 {[%clk 0:00:02.5]}
70... Ne6+ {[%clk 0:00:01.9]} 71. Kc3 {[%clk 0:00:02.1]} 71... Nc5 {[%clk
0:00:01.9]} 72. Bg1 {[%clk 0:00:02.2]} 72... Be4 {[%clk 0:00:01.1]} 73. Bd4
{[%clk 0:00:02.3]} 73... Bf3 {[%clk 0:00:01.1]} 74. Be3 {[%clk 0:00:02.3]} 1-0

[Event "Early-Titled-Tuesday-Blitz-April-23-2024"]
[Site "Chess.com"]
[Date "2024.04.23"]
[Round "7"]
[White "ChessSG1"]
[Black "maximnovik"]
[Result "1-0"]
[WhiteElo "2440"]
[BlackElo "2562"]
[TimeControl "180+1"]
[EndTime "9:21:35 PDT"]
[Termination "ChessSG1 won on time"]

1. c4 {[%clk 0:03:00.9]} 1... c5 {[%clk 0:02:58.8]} 2. g3 {[%clk 0:03:01.1]}
2... Nf6 {[%clk 0:02:56.4]} 3. Bg2 {[%clk 0:03:01.4]} 3... d5 {[%clk 0:02:55.5]}
4. cxd5 {[%clk 0:03:01.7]} 4... Nxd5 {[%clk 0:02:55.5]} 5. Nc3 {[%clk
0:03:02.6]} 5... Nc7 {[%clk 0:02:56]} 6. Nf3 {[%clk 0:02:55.3]} 6... Nc6 {[%clk
0:02:55.8]} 7. O-O {[%clk 0:02:52.4]} 7... e5 {[%clk 0:02:55.3]} 8. d3 {[%clk
0:02:52.9]} 8... Be7 {[%clk 0:02:53.5]} 9. Be3 {[%clk 0:02:52]} 9... O-O {[%clk
0:02:52.3]} 10. Rc1 {[%clk 0:02:51.9]} 10... b6 {[%clk 0:02:44.8]} 11. Nd2
{[%clk 0:02:48.3]} 11... Bb7 {[%clk 0:02:42.3]} 12. Nc4 {[%clk 0:02:48.6]} 12...
f6 {[%clk 0:02:38.1]} 13. Qb3 {[%clk 0:02:30.1]} 13... Kh8 {[%clk 0:02:37.8]}
14. Ne4 {[%clk 0:02:26.2]} 14... Rb8 {[%clk 0:02:37]} 15. a4 {[%clk 0:02:16.8]}
15... Ba8 {[%clk 0:02:30.9]} 16. Rfd1 {[%clk 0:02:01.3]} 16... Qd7 {[%clk
0:02:30.4]} 17. Na3 {[%clk 0:01:55.4]} 17... Ne6 {[%clk 0:02:27.9]} 18. Nb5
{[%clk 0:01:54.5]} 18... a6 {[%clk 0:02:23.7]} 19. Nbc3 {[%clk 0:01:43.6]} 19...
Ncd4 {[%clk 0:02:23]} 20. Qa2 {[%clk 0:01:41.5]} 20... f5 {[%clk 0:02:21.6]} 21.
Nd2 {[%clk 0:01:38.6]} 21... Bxg2 {[%clk 0:02:19]} 22. Kxg2 {[%clk 0:01:39.5]}
22... Qb7+ {[%clk 0:02:02.6]} 23. Kg1 {[%clk 0:01:38.3]} 23... Bg5 {[%clk
0:01:56]} 24. Bxd4 {[%clk 0:01:28.3]} 24... Nxd4 {[%clk 0:01:53.6]} 25. e3
{[%clk 0:01:26.7]} 25... Nf3+ {[%clk 0:01:39.5]} 26. Nxf3 {[%clk 0:01:26.2]}
26... Qxf3 {[%clk 0:01:39.7]} 27. Qd5 {[%clk 0:01:26.7]} 27... e4 {[%clk
0:01:24.7]} 28. dxe4 {[%clk 0:00:50.4]} 28... Rbd8 {[%clk 0:01:24.3]} 29. Qc4
{[%clk 0:00:37.9]} 29... fxe4 {[%clk 0:01:18.5]} 30. Qe2 {[%clk 0:00:38.5]}
30... Qxe2 {[%clk 0:01:13.8]} 31. Nxe2 {[%clk 0:00:38.4]} 31... Bf6 {[%clk
0:01:12.5]} 32. b3 {[%clk 0:00:36.8]} 32... Be5 {[%clk 0:00:59.7]} 33. Kg2
{[%clk 0:00:28]} 33... Kg8 {[%clk 0:00:58.1]} 34. Rxd8 {[%clk 0:00:23.3]} 34...
Rxd8 {[%clk 0:00:57.5]} 35. Rc4 {[%clk 0:00:23.9]} 35... Rd2 {[%clk 0:00:39.8]}
36. Rxe4 {[%clk 0:00:24.2]} 36... Rxe2 {[%clk 0:00:36.4]} 37. Rxe5 {[%clk
0:00:24.1]} 37... Rb2 {[%clk 0:00:36.9]} 38. Re8+ {[%clk 0:00:22.4]} 38... Kf7
{[%clk 0:00:36.2]} 39. Ra8 {[%clk 0:00:22.1]} 39... a5 {[%clk 0:00:36.1]} 40.
Ra7+ {[%clk 0:00:20.4]} 40... Kf6 {[%clk 0:00:36.2]} 41. Kf3 {[%clk 0:00:14.1]}
41... Rxb3 {[%clk 0:00:36.6]} 42. Rb7 {[%clk 0:00:14.6]} 42... Rb2 {[%clk
0:00:30.3]} 43. g4 {[%clk 0:00:13]} 43... h6 {[%clk 0:00:28.7]} 44. h4 {[%clk
0:00:13.1]} 44... g5 {[%clk 0:00:26.7]} 45. h5 {[%clk 0:00:13.5]} 45... Ke5
{[%clk 0:00:26.5]} 46. Re7+ {[%clk 0:00:11.3]} 46... Kd5 {[%clk 0:00:24.9]} 47.
Rh7 {[%clk 0:00:10.7]} 47... c4 {[%clk 0:00:24.8]} 48. Rxh6 {[%clk 0:00:09.5]}
48... c3 {[%clk 0:00:24.8]} 49. Rh8 {[%clk 0:00:09.7]} 49... Kc4 {[%clk
0:00:18]} 50. Rc8+ {[%clk 0:00:09.8]} 50... Kb3 {[%clk 0:00:17.4]} 51. h6 {[%clk
0:00:10.1]} 51... Rb1 {[%clk 0:00:17.2]} 52. h7 {[%clk 0:00:10.1]} 52... Rh1
{[%clk 0:00:16.5]} 53. h8=Q {[%clk 0:00:10]} 53... Rxh8 {[%clk 0:00:15.6]} 54.
Rxh8 {[%clk 0:00:10.9]} 54... Kxa4 {[%clk 0:00:15.1]} 55. Rc8 {[%clk 0:00:09.6]}
55... Kb3 {[%clk 0:00:13.1]} 56. e4 {[%clk 0:00:10]} 56... a4 {[%clk 0:00:10.2]}
57. Ke2 {[%clk 0:00:04.4]} 57... b5 {[%clk 0:00:08.5]} 58. e5 {[%clk 0:00:04.2]}
58... a3 {[%clk 0:00:08.2]} 59. Kd1 {[%clk 0:00:02.4]} 59... a2 {[%clk
0:00:05.8]} 60. Ra8 {[%clk 0:00:02.9]} 60... Kb2 {[%clk 0:00:04.7]} 61. Rxa2+
{[%clk 0:00:03.1]} 61... Kxa2 {[%clk 0:00:04.5]} 62. Kc2 {[%clk 0:00:03.4]}
62... b4 {[%clk 0:00:05]} 63. e6 {[%clk 0:00:04]} 63... b3+ {[%clk 0:00:04.2]}
64. Kxc3 {[%clk 0:00:04.6]} 64... b2 {[%clk 0:00:03.7]} 65. e7 {[%clk
0:00:05.1]} 65... b1=Q {[%clk 0:00:03.7]} 66. e8=Q {[%clk 0:00:05.5]} 66... Qb2+
{[%clk 0:00:03.7]} 67. Kd3 {[%clk 0:00:03.6]} 67... Qb3+ {[%clk 0:00:01.7]} 68.
Ke2 {[%clk 0:00:03.9]} 68... Qc4+ {[%clk 0:00:01.2]} 69. Kf3 {[%clk 0:00:03.6]}
69... Qf4+ {[%clk 0:00:01.3]} 70. Kg2 {[%clk 0:00:03.9]} 70... Qxg4+ {[%clk
0:00:01.9]} 71. Kf1 {[%clk 0:00:04.4]} 1-0

[Event "Early-Titled-Tuesday-Blitz-April-23-2024"]
[Site "Chess.com"]
[Date "2024.04.23"]
[Round "7"]
[White "FXDon77"]
[Black "DanyKopy"]
[Result "1-0"]
[WhiteElo "2849"]
[BlackElo "2564"]
[TimeControl "180+1"]
[EndTime "9:21:36 PDT"]
[Termination "FXDon77 won by resignation"]

1. e4 {[%clk 0:02:59.8]} 1... c5 {[%clk 0:02:59.9]} 2. Be2 {[%clk 0:02:57.9]}
2... Nc6 {[%clk 0:02:59.6]} 3. f4 {[%clk 0:02:56.3]} 3... d5 {[%clk 0:02:57]} 4.
d3 {[%clk 0:02:56.1]} 4... g6 {[%clk 0:02:44.3]} 5. Nf3 {[%clk 0:02:55.6]} 5...
Bg7 {[%clk 0:02:44]} 6. O-O {[%clk 0:02:54.8]} 6... dxe4 {[%clk 0:02:43.2]} 7.
dxe4 {[%clk 0:02:54.5]} 7... Qxd1 {[%clk 0:02:43.1]} 8. Bxd1 {[%clk 0:02:54.6]}
8... a6 {[%clk 0:02:42.8]} 9. c3 {[%clk 0:02:54.8]} 9... e5 {[%clk 0:02:39.1]}
10. Nbd2 {[%clk 0:02:47.7]} 10... Nge7 {[%clk 0:02:32.7]} 11. Nc4 {[%clk
0:02:46.6]} 11... O-O {[%clk 0:02:31.5]} 12. a4 {[%clk 0:02:44.5]} 12... exf4
{[%clk 0:02:27.9]} 13. Nb6 {[%clk 0:02:42]} 13... Ra7 {[%clk 0:02:26.3]} 14.
Bxf4 {[%clk 0:02:42.7]} 14... Be6 {[%clk 0:02:22.4]} 15. Be3 {[%clk 0:02:40.6]}
15... Nc8 {[%clk 0:02:14.6]} 16. Bxc5 {[%clk 0:02:29.2]} 16... Nxb6 {[%clk
0:02:12.7]} 17. Bxb6 {[%clk 0:02:30.1]} 17... Raa8 {[%clk 0:02:13.1]} 18. Bc2
{[%clk 0:02:25.3]} 18... Ne5 {[%clk 0:02:07.1]} 19. Nxe5 {[%clk 0:02:19.3]}
19... Bxe5 {[%clk 0:02:08]} 20. Rad1 {[%clk 0:02:14.8]} 20... Rac8 {[%clk
0:02:04.8]} 21. Bd4 {[%clk 0:02:12.5]} 21... Bg7 {[%clk 0:02:02.8]} 22. Bxg7
{[%clk 0:02:12.4]} 22... Kxg7 {[%clk 0:02:03.7]} 23. Rd6 {[%clk 0:02:12.7]}
23... Rfd8 {[%clk 0:02:00.2]} 24. Rfd1 {[%clk 0:02:12.7]} 24... Rxd6 {[%clk
0:01:57.4]} 25. Rxd6 {[%clk 0:02:13.6]} 25... b5 {[%clk 0:01:43.1]} 26. axb5
{[%clk 0:01:56.4]} 26... axb5 {[%clk 0:01:44]} 27. Rb6 {[%clk 0:01:56.8]} 27...
Rc5 {[%clk 0:01:43.8]} 28. Bd3 {[%clk 0:01:52.6]} 28... Bc4 {[%clk 0:01:37.2]}
29. Bxc4 {[%clk 0:01:52.8]} 29... bxc4 {[%clk 0:01:37.1]} 30. Kf2 {[%clk
0:01:52.3]} 30... h5 {[%clk 0:01:06.4]} 31. Ke3 {[%clk 0:01:51.8]} 31... h4
{[%clk 0:01:06.1]} 32. g3 {[%clk 0:01:39.8]} 32... h3 {[%clk 0:00:56.3]} 33. Kf4
{[%clk 0:01:22.9]} 33... Rc7 {[%clk 0:00:44.7]} 34. Rb4 {[%clk 0:01:20.2]} 34...
Rd7 {[%clk 0:00:42.9]} 35. Kg4 {[%clk 0:01:15.4]} 35... Rd2 {[%clk 0:00:30.8]}
36. Kxh3 {[%clk 0:01:13.9]} 36... Re2 {[%clk 0:00:31.4]} 37. Rxc4 {[%clk
0:00:56.3]} 37... Rxb2 {[%clk 0:00:31.2]} 38. g4 {[%clk 0:00:51.3]} 38... Kf6
{[%clk 0:00:23.6]} 39. Rc5 {[%clk 0:00:41.1]} 39... Re2 {[%clk 0:00:21.1]} 40.
e5+ {[%clk 0:00:41.5]} 40... Ke6 {[%clk 0:00:14.5]} 41. Kg3 {[%clk 0:00:40]}
41... g5 {[%clk 0:00:14.2]} 42. h4 {[%clk 0:00:26]} 42... gxh4+ {[%clk
0:00:13.9]} 43. Kxh4 {[%clk 0:00:26.3]} 43... Re1 {[%clk 0:00:09.8]} 44. Kg5
{[%clk 0:00:25.4]} 44... Rc1 {[%clk 0:00:08.3]} 45. Kf4 {[%clk 0:00:20.5]} 45...
Rf1+ {[%clk 0:00:08]} 46. Ke3 {[%clk 0:00:20.2]} 46... Rg1 {[%clk 0:00:08.5]}
47. Kf3 {[%clk 0:00:20]} 47... Rf1+ {[%clk 0:00:08.7]} 48. Kg2 {[%clk
0:00:19.4]} 48... Rc1 {[%clk 0:00:09]} 49. c4 {[%clk 0:00:16.8]} 49... Re1
{[%clk 0:00:07.6]} 50. Kf3 {[%clk 0:00:16.7]} 50... Rc1 {[%clk 0:00:07.4]} 51.
Kf4 {[%clk 0:00:15]} 51... Rf1+ {[%clk 0:00:07.4]} 52. Kg5 {[%clk 0:00:15.6]}
52... Re1 {[%clk 0:00:06.4]} 53. Rd5 {[%clk 0:00:06.8]} 53... Rc1 {[%clk
0:00:05.9]} 54. Rd4 {[%clk 0:00:04.4]} 54... Kxe5 {[%clk 0:00:05.8]} 55. Rf4
{[%clk 0:00:05.1]} 55... Ke6 {[%clk 0:00:03.6]} 56. Rf6+ {[%clk 0:00:05.2]}
56... Ke7 {[%clk 0:00:03.9]} 57. Rc6 {[%clk 0:00:05.3]} 57... Rc2 {[%clk
0:00:03.6]} 58. Kf4 {[%clk 0:00:04.5]} 58... Kf8 {[%clk 0:00:03.5]} 59. Ke5
{[%clk 0:00:04.2]} 59... Ke7 {[%clk 0:00:03.4]} 60. Rc7+ {[%clk 0:00:04.3]}
60... Kd8 {[%clk 0:00:03.1]} 61. Rxf7 {[%clk 0:00:02.8]} 61... Rxc4 {[%clk
0:00:03.7]} 62. g5 {[%clk 0:00:03]} 62... Ke8 {[%clk 0:00:03.9]} 63. g6 {[%clk
0:00:03.1]} 63... Rc6 {[%clk 0:00:03.2]} 64. Kf5 {[%clk 0:00:03.5]} 64... Rc5+
{[%clk 0:00:02.8]} 65. Kf6 {[%clk 0:00:04]} 65... Rc1 {[%clk 0:00:03]} 66. Kg7
{[%clk 0:00:04.5]} 66... Rg1 {[%clk 0:00:01.8]} 67. Rf8+ {[%clk 0:00:04.6]}
67... Ke7 {[%clk 0:00:02.1]} 68. Rf7+ {[%clk 0:00:05.2]} 68... Ke8 {[%clk
0:00:02.5]} 69. Rf2 {[%clk 0:00:05.1]} 69... Re1 {[%clk 0:00:02.2]} 70. Rh2
{[%clk 0:00:04.2]} 70... Ke7 {[%clk 0:00:02.2]} 71. Kh7 {[%clk 0:00:04.8]} 1-0